[Event "*** Titled Tuesday Blitz"]
[Site "Chess.com"]
[Date "2019.05.07"]
[Round "3"]
[White "STAYFlow"]
[Black "nitpicker"]
[Result "0-1"]
[WhiteElo "2352"]
[BlackElo "2254"]
[TimeControl "180+2"]
[EndTime "13:37:13 PDT"]
[Termination "nitpicker won by resignation"]

1. d4 {[%clk 0:03:01.9]} 1... Nf6 {[%clk 0:02:57.8]} 2. c4 {[%clk 0:03:02.6]}
2... e6 {[%clk 0:02:58.4]} 3. g3 {[%clk 0:03:03.6]} 3... d5 {[%clk 0:02:58.3]}
4. Nf3 {[%clk 0:03:04.7]} 4... Bb4+ {[%clk 0:02:54.5]} 5. Bd2 {[%clk 0:03:04.7]}
5... Be7 {[%clk 0:02:55.2]} 6. Bg2 {[%clk 0:03:05.5]} 6... O-O {[%clk
0:02:55.6]} 7. O-O {[%clk 0:03:07]} 7... c6 {[%clk 0:02:56.6]} 8. Qc2 {[%clk
0:03:07.8]} 8... b6 {[%clk 0:02:53.5]} 9. Bf4 {[%clk 0:03:08.2]} 9... Ba6 {[%clk
0:02:52.6]} 10. Ne5 {[%clk 0:03:06]} 10... Qc8 {[%clk 0:02:46.2]} 11. Rc1 {[%clk
0:03:02.4]} 11... Rd8 {[%clk 0:02:34.6]} 12. Nd2 {[%clk 0:02:17]} 12... dxc4
{[%clk 0:02:29.8]} 13. Ndxc4 {[%clk 0:02:04]} 13... Rxd4 {[%clk 0:02:26.7]} 14.
Rd1 {[%clk 0:02:03.9]} 14... Rxd1+ {[%clk 0:02:18.5]} 15. Rxd1 {[%clk
0:02:05.8]} 15... Bb7 {[%clk 0:02:16.5]} 16. Nd6 {[%clk 0:01:58.7]} 16... Bxd6
{[%clk 0:02:05.9]} 17. Rxd6 {[%clk 0:02:00.6]} 17... Qf8 {[%clk 0:01:42.7]} 18.
Nxc6 {[%clk 0:01:47.7]} 18... Nxc6 {[%clk 0:01:42.5]} 19. Bxc6 {[%clk
0:01:46.7]} 19... Rc8 {[%clk 0:01:41.7]} 20. b4 {[%clk 0:01:36.4]} 20... Nd5
{[%clk 0:01:38.3]} 21. Rxd5 {[%clk 0:01:27.8]} 21... exd5 {[%clk 0:01:37.8]} 22.
b5 {[%clk 0:01:28.9]} 22... Bxc6 {[%clk 0:01:36.7]} 23. bxc6 {[%clk 0:01:30]}
23... Qc5 {[%clk 0:01:36.8]} 24. Qa4 {[%clk 0:01:19.3]} 24... b5 {[%clk
0:01:27.4]} 25. Qa5 {[%clk 0:01:18]} 25... Qxc6 {[%clk 0:01:15.1]} 26. Qxa7
{[%clk 0:01:19.4]} 26... h6 {[%clk 0:01:10.2]} 27. Qd4 {[%clk 0:01:16.7]} 27...
Qc4 {[%clk 0:01:05.1]} 28. Qe5 {[%clk 0:01:10.2]} 28... Qxa2 {[%clk 0:01:00.5]}
29. Qf5 {[%clk 0:01:11]} 29... Qc4 {[%clk 0:00:56.1]} 30. h4 {[%clk 0:01:05.7]}
30... b4 {[%clk 0:00:50.9]} 31. Be5 {[%clk 0:01:05.2]} 31... Ra8 {[%clk
0:00:47.6]} 32. Kg2 {[%clk 0:01:03.4]} 32... Qe4+ {[%clk 0:00:48.2]} 0-1

[Event "*** Titled Tuesday Blitz"]
[Site "Chess.com"]
[Date "2019.05.07"]
[Round "3"]
[White "harvsp123"]
[Black "Ambitiousresolutions"]
[Result "0-1"]
[WhiteElo "2467"]
[BlackElo "2701"]
[TimeControl "180+2"]
[EndTime "13:37:19 PDT"]
[Termination "Ambitiousresolutions won by resignation"]

1. d4 {[%clk 0:03:01.9]} 1... Nf6 {[%clk 0:03:00.3]} 2. c4 {[%clk 0:03:02.4]}
2... g6 {[%clk 0:03:01.6]} 3. Nc3 {[%clk 0:03:02.2]} 3... d5 {[%clk 0:03:02.6]}
4. cxd5 {[%clk 0:03:02]} 4... Nxd5 {[%clk 0:03:04.5]} 5. e4 {[%clk 0:03:03.4]}
5... Nxc3 {[%clk 0:03:05.7]} 6. bxc3 {[%clk 0:03:05.3]} 6... Bg7 {[%clk
0:03:07.1]} 7. Nf3 {[%clk 0:03:05.6]} 7... c5 {[%clk 0:03:07.8]} 8. Rb1 {[%clk
0:03:06.6]} 8... O-O {[%clk 0:03:07.3]} 9. Be2 {[%clk 0:03:08]} 9... Nd7 {[%clk
0:03:07.1]} 10. O-O {[%clk 0:03:07.9]} 10... Nf6 {[%clk 0:03:08.1]} 11. Qd3
{[%clk 0:03:04.6]} 11... b6 {[%clk 0:03:09]} 12. d5 {[%clk 0:03:02.6]} 12...
Nxe4 {[%clk 0:02:59.2]} 13. Qxe4 {[%clk 0:02:51.6]} 13... Bf5 {[%clk 0:02:59.6]}
14. Qh4 {[%clk 0:02:46.1]} 14... Bxb1 {[%clk 0:02:59.8]} 15. Bg5 {[%clk
0:02:46.6]} 15... Bxa2 {[%clk 0:02:52.4]} 16. Rd1 {[%clk 0:02:37.4]} 16... Bb3
{[%clk 0:02:37.9]} 17. Bxe7 {[%clk 0:02:35.8]} 17... Qd7 {[%clk 0:02:36.8]} 18.
Rd2 {[%clk 0:02:26]} 18... Rfe8 {[%clk 0:02:31.8]} 19. d6 {[%clk 0:02:11.4]}
19... a5 {[%clk 0:02:05.9]} 20. Ng5 {[%clk 0:02:07.3]} 20... Rxe7 {[%clk
0:01:38.1]} 21. dxe7 {[%clk 0:01:48.6]} 21... Qxe7 {[%clk 0:01:40]} 22. Qxh7+
{[%clk 0:01:48.4]} 22... Kf8 {[%clk 0:01:41]} 23. Qh4 {[%clk 0:01:32.3]} 23...
Re8 {[%clk 0:01:40.6]} 24. h3 {[%clk 0:01:21.8]} 24... Bxc3 {[%clk 0:01:13.9]}
25. Kh2 {[%clk 0:00:55.1]} 25... Qc7+ {[%clk 0:01:03.4]} 26. f4 {[%clk 0:00:46]}
26... Bxd2 {[%clk 0:00:57.1]} 27. Nh7+ {[%clk 0:00:38.5]} 27... Kg7 {[%clk
0:00:54.6]} 0-1

[Event "*** Titled Tuesday Blitz"]
[Site "Chess.com"]
[Date "2019.05.07"]
[Round "3"]
[White "NeverEverForever1990"]
[Black "1random"]
[Result "0-1"]
[WhiteElo "2430"]
[BlackElo "2680"]
[TimeControl "180+2"]
[EndTime "13:37:22 PDT"]
[Termination "1random won by resignation"]

1. d4 {[%clk 0:02:59.2]} 1... Nf6 {[%clk 0:03:00.3]} 2. Nf3 {[%clk 0:02:59.5]}
2... d5 {[%clk 0:03:01.9]} 3. Bf4 {[%clk 0:03:00.2]} 3... c5 {[%clk 0:02:51.3]}
4. e3 {[%clk 0:03:01.4]} 4... Nc6 {[%clk 0:02:51.1]} 5. Nbd2 {[%clk 0:03:01.7]}
5... Qb6 {[%clk 0:02:50.8]} 6. dxc5 {[%clk 0:03:02.1]} 6... Qxb2 {[%clk
0:02:44.2]} 7. Rb1 {[%clk 0:03:02.7]} 7... Qxa2 {[%clk 0:02:42.8]} 8. Bb5 {[%clk
0:02:58.8]} 8... Qa3 {[%clk 0:02:41.7]} 9. Ne5 {[%clk 0:02:54.9]} 9... Qxc5
{[%clk 0:02:39.4]} 10. c4 {[%clk 0:02:12.8]} 10... Bd7 {[%clk 0:02:33.4]} 11.
Qa4 {[%clk 0:01:30.2]} 11... Nxe5 {[%clk 0:02:23.7]} 12. Bxe5 {[%clk 0:01:30]}
12... Bxb5 {[%clk 0:02:24.8]} 13. Rxb5 {[%clk 0:01:30.4]} 13... Qc6 {[%clk
0:02:25.7]} 14. Bxf6 {[%clk 0:01:19.4]} 14... gxf6 {[%clk 0:02:27.6]} 15. cxd5
{[%clk 0:01:17.3]} 15... Qd7 {[%clk 0:02:28.4]} 16. Qb3 {[%clk 0:00:54.3]} 16...
b6 {[%clk 0:02:26.5]} 17. O-O {[%clk 0:00:43.7]} 17... Bg7 {[%clk 0:02:22.8]}
18. e4 {[%clk 0:00:30.7]} 18... O-O {[%clk 0:02:24]} 19. Nf3 {[%clk 0:00:32.2]}
19... e6 {[%clk 0:02:07.9]} 20. Nd4 {[%clk 0:00:30.3]} 20... f5 {[%clk
0:02:04.2]} 21. Rd1 {[%clk 0:00:17.6]} 21... Rad8 {[%clk 0:01:40]} 22. Nc6
{[%clk 0:00:12.6]} 22... Rc8 {[%clk 0:01:39.9]} 23. exf5 {[%clk 0:00:13.3]}
23... exd5 {[%clk 0:01:34.7]} 24. f6 {[%clk 0:00:04.2]} 24... Bxf6 {[%clk
0:01:35.4]} 25. Qg3+ {[%clk 0:00:05]} 25... Kh8 {[%clk 0:01:36.9]} 26. Ne5
{[%clk 0:00:04.1]} 26... Qxb5 {[%clk 0:01:36.2]} 27. Qf4 {[%clk 0:00:05.6]}
27... Bxe5 {[%clk 0:01:33.3]} 28. Qxe5+ {[%clk 0:00:06.9]} 28... f6 {[%clk
0:01:35.1]} 29. Qe7 {[%clk 0:00:08.4]} 29... Rce8 {[%clk 0:01:34.6]} 0-1

[Event "*** Titled Tuesday Blitz"]
[Site "Chess.com"]
[Date "2019.05.07"]
[Round "3"]
[White "1e41-0"]
[Black "rookoco"]
[Result "0-1"]
[WhiteElo "2460"]
[BlackElo "2759"]
[TimeControl "180+2"]
[EndTime "13:37:27 PDT"]
[Termination "rookoco won by resignation"]

1. e4 {[%clk 0:03:01.9]} 1... c5 {[%clk 0:03:00.1]} 2. Nf3 {[%clk 0:03:03.3]}
2... d6 {[%clk 0:03:00.4]} 3. d4 {[%clk 0:03:04.7]} 3... cxd4 {[%clk 0:03:01.6]}
4. Nxd4 {[%clk 0:03:06.6]} 4... Nf6 {[%clk 0:03:02.8]} 5. Nc3 {[%clk 0:03:07.1]}
5... a6 {[%clk 0:03:04.4]} 6. h3 {[%clk 0:03:07.7]} 6... e5 {[%clk 0:03:04.7]}
7. Nde2 {[%clk 0:03:08.4]} 7... h5 {[%clk 0:03:05.4]} 8. Bg5 {[%clk 0:03:08.9]}
8... Be6 {[%clk 0:03:04.9]} 9. Ng3 {[%clk 0:03:09.1]} 9... Nbd7 {[%clk
0:03:02.5]} 10. Be2 {[%clk 0:03:04.8]} 10... g6 {[%clk 0:03:01.3]} 11. Qd2
{[%clk 0:02:59.3]} 11... Rc8 {[%clk 0:03:01.1]} 12. Bf3 {[%clk 0:02:43.6]} 12...
Qb6 {[%clk 0:03:00.1]} 13. O-O-O {[%clk 0:02:35.9]} 13... Be7 {[%clk 0:02:52.7]}
14. Nf1 {[%clk 0:02:34.8]} 14... Qa5 {[%clk 0:02:44.8]} 15. a3 {[%clk
0:02:16.6]} 15... b5 {[%clk 0:02:39.2]} 16. Kb1 {[%clk 0:01:58.4]} 16... b4
{[%clk 0:02:32.7]} 17. axb4 {[%clk 0:01:58.4]} 17... Qxb4 {[%clk 0:02:32.7]} 18.
Nd5 {[%clk 0:01:56.9]} 18... Qa4 {[%clk 0:01:48.2]} 19. b3 {[%clk 0:01:48.1]}
19... Qa3 {[%clk 0:01:48.4]} 20. Nxe7 {[%clk 0:01:42.4]} 20... Kxe7 {[%clk
0:01:48.6]} 21. Ne3 {[%clk 0:01:41.2]} 21... Rc6 {[%clk 0:01:40.3]} 22. Be2
{[%clk 0:01:24.7]} 22... Rb8 {[%clk 0:01:36.1]} 23. Nd5+ {[%clk 0:01:18.5]}
23... Kf8 {[%clk 0:00:54.3]} 24. Bxf6 {[%clk 0:01:11]} 24... Nxf6 {[%clk
0:00:53.6]} 25. Qh6+ {[%clk 0:01:11.3]} 25... Ke8 {[%clk 0:00:54.4]} 26. Nxf6+
{[%clk 0:01:11.7]} 26... Ke7 {[%clk 0:00:53.8]} 27. Qg5 {[%clk 0:00:21.3]} 27...
Rxb3+ {[%clk 0:00:52.2]} 28. cxb3 {[%clk 0:00:20]} 28... Qxb3+ {[%clk
0:00:54.1]} 0-1

[Event "*** Titled Tuesday Blitz"]
[Site "Chess.com"]
[Date "2019.05.07"]
[Round "3"]
[White "GCamachoMartinez"]
[Black "volcanoexplorer"]
[Result "0-1"]
[WhiteElo "2358"]
[BlackElo "2624"]
[TimeControl "180+2"]
[EndTime "13:37:30 PDT"]
[Termination "volcanoexplorer won on time"]

1. d4 {[%clk 0:03:01.9]} 1... Nf6 {[%clk 0:03:01]} 2. c4 {[%clk 0:03:02.3]} 2...
e6 {[%clk 0:03:02.4]} 3. Nc3 {[%clk 0:03:02.6]} 3... Bb4 {[%clk 0:03:03]} 4. g3
{[%clk 0:03:03.9]} 4... O-O {[%clk 0:03:02.2]} 5. Bg2 {[%clk 0:02:59.6]} 5... d5
{[%clk 0:03:03]} 6. cxd5 {[%clk 0:02:32.8]} 6... Nxd5 {[%clk 0:03:02]} 7. Bd2
{[%clk 0:02:32.9]} 7... Nxc3 {[%clk 0:02:37.3]} 8. bxc3 {[%clk 0:02:33]} 8...
Bd6 {[%clk 0:02:30.6]} 9. Nf3 {[%clk 0:02:33.6]} 9... c5 {[%clk 0:02:31.1]} 10.
O-O {[%clk 0:02:33.9]} 10... Nc6 {[%clk 0:02:31.8]} 11. e4 {[%clk 0:02:32.4]}
11... e5 {[%clk 0:02:22.7]} 12. d5 {[%clk 0:02:26.8]} 12... Ne7 {[%clk
0:02:23.4]} 13. c4 {[%clk 0:02:27.3]} 13... h6 {[%clk 0:02:14.2]} 14. Bc3 {[%clk
0:02:28.1]} 14... Ng6 {[%clk 0:02:13.8]} 15. Rb1 {[%clk 0:02:26.4]} 15... b6
{[%clk 0:02:14.1]} 16. Ne1 {[%clk 0:02:09.1]} 16... f5 {[%clk 0:02:09.8]} 17.
Qh5 {[%clk 0:01:57.3]} 17... Kh7 {[%clk 0:01:48.9]} 18. Nd3 {[%clk 0:01:49.7]}
18... Qe7 {[%clk 0:01:06.8]} 19. Rbe1 {[%clk 0:01:44.8]} 19... f4 {[%clk
0:01:06.3]} 20. gxf4 {[%clk 0:01:45.1]} 20... Nxf4 {[%clk 0:01:07.3]} 21. Nxf4
{[%clk 0:01:34.6]} 21... Rxf4 {[%clk 0:01:09.2]} 22. Bh3 {[%clk 0:01:08.7]}
22... g6 {[%clk 0:00:49.2]} 0-1

[Event "*** Titled Tuesday Blitz"]
[Site "Chess.com"]
[Date "2019.05.07"]
[Round "3"]
[White "slowdumbb"]
[Black "PE-TRO"]
[Result "0-1"]
[WhiteElo "2471"]
[BlackElo "2803"]
[TimeControl "180+2"]
[EndTime "13:37:44 PDT"]
[Termination "PE-TRO won by resignation"]

1. g3 {[%clk 0:02:53.2]} 1... Nf6 {[%clk 0:03:00.1]} 2. Bg2 {[%clk 0:02:53.7]}
2... g6 {[%clk 0:02:55.2]} 3. Nf3 {[%clk 0:02:54.7]} 3... Bg7 {[%clk 0:02:56.3]}
4. O-O {[%clk 0:02:52.8]} 4... d5 {[%clk 0:02:57.3]} 5. d3 {[%clk 0:02:54.7]}
5... O-O {[%clk 0:02:57.6]} 6. c4 {[%clk 0:02:56]} 6... c5 {[%clk 0:02:53.5]} 7.
Nc3 {[%clk 0:02:50.6]} 7... Nc6 {[%clk 0:02:52.7]} 8. cxd5 {[%clk 0:02:47.3]}
8... Nxd5 {[%clk 0:02:53.2]} 9. Bd2 {[%clk 0:02:49.2]} 9... b6 {[%clk
0:02:40.7]} 10. Nxd5 {[%clk 0:02:43.7]} 10... Qxd5 {[%clk 0:02:42.6]} 11. Ne5
{[%clk 0:02:40.7]} 11... Qxe5 {[%clk 0:02:43.6]} 12. Bxc6 {[%clk 0:02:41.2]}
12... Bh3 {[%clk 0:02:43.9]} 13. Bxa8 {[%clk 0:02:36]} 13... Rxa8 {[%clk
0:02:12.3]} 14. Re1 {[%clk 0:02:24.7]} 14... Qxb2 {[%clk 0:02:00.8]} 15. Be3
{[%clk 0:01:32.2]} 15... Qxa1 {[%clk 0:01:58.4]} 16. Qxa1 {[%clk 0:01:34.1]}
16... Bxa1 {[%clk 0:01:59.4]} 17. Rxa1 {[%clk 0:01:36]} 17... Be6 {[%clk
0:01:54.1]} 18. a4 {[%clk 0:01:31]} 18... c4 {[%clk 0:01:52.3]} 19. dxc4 {[%clk
0:01:25.9]} 19... Bxc4 {[%clk 0:01:54.2]} 20. a5 {[%clk 0:01:19.1]} 20... b5
{[%clk 0:01:51.9]} 21. a6 {[%clk 0:00:47.7]} 21... Bxe2 {[%clk 0:01:46.4]} 22.
Bc5 {[%clk 0:00:48.5]} 22... e5 {[%clk 0:01:33.9]} 23. Re1 {[%clk 0:00:43.9]}
23... Bf3 {[%clk 0:01:27.1]} 24. Rxe5 {[%clk 0:00:24.1]} 24... Rc8 {[%clk
0:01:27.6]} 25. g4 {[%clk 0:00:18.8]} 25... f6 {[%clk 0:01:27.6]} 26. Re3 {[%clk
0:00:14.8]} 26... Rxc5 {[%clk 0:01:28.6]} 27. Rxf3 {[%clk 0:00:16.1]} 27... Rc6
{[%clk 0:01:30.2]} 28. Rb3 {[%clk 0:00:15]} 28... Rb6 {[%clk 0:01:31.4]} 29. f4
{[%clk 0:00:12.8]} 29... Kf7 {[%clk 0:01:32.5]} 30. f5 {[%clk 0:00:14.2]} 30...
gxf5 {[%clk 0:01:33.2]} 31. gxf5 {[%clk 0:00:16.1]} 31... Ke7 {[%clk 0:01:34.6]}
32. Re3+ {[%clk 0:00:13.3]} 32... Kd6 {[%clk 0:01:29.7]} 33. Re6+ {[%clk
0:00:11.1]} 33... Kc5 {[%clk 0:01:30.8]} 34. Re7 {[%clk 0:00:12.3]} 34... Rxa6
{[%clk 0:01:31.9]} 35. Rxh7 {[%clk 0:00:13.1]} 35... b4 {[%clk 0:01:32.9]} 36.
h4 {[%clk 0:00:14.4]} 36... b3 {[%clk 0:01:33.6]} 0-1

[Event "*** Titled Tuesday Blitz"]
[Site "Chess.com"]
[Date "2019.05.07"]
[Round "3"]
[White "aa175"]
[Black "PNEPaul"]
[Result "1-0"]
[WhiteElo "1976"]
[BlackElo "1852"]
[TimeControl "180+2"]
[EndTime "13:37:45 PDT"]
[Termination "aa175 won by resignation"]

1. e4 {[%clk 0:02:50.5]} 1... e5 {[%clk 0:03:00.7]} 2. Nf3 {[%clk 0:02:39.7]}
2... Nc6 {[%clk 0:03:01]} 3. Bc4 {[%clk 0:02:39.8]} 3... Be7 {[%clk 0:03:01.1]}
4. d3 {[%clk 0:02:36.3]} 4... Nf6 {[%clk 0:03:01.4]} 5. Nc3 {[%clk 0:02:35.4]}
5... O-O {[%clk 0:03:02.1]} 6. O-O {[%clk 0:02:36]} 6... d6 {[%clk 0:03:03]} 7.
h3 {[%clk 0:02:31.5]} 7... h6 {[%clk 0:03:02.9]} 8. Be3 {[%clk 0:02:30.6]} 8...
Be6 {[%clk 0:03:03.3]} 9. Bb3 {[%clk 0:02:25.4]} 9... d5 {[%clk 0:03:03.1]} 10.
exd5 {[%clk 0:02:24.1]} 10... Nxd5 {[%clk 0:03:03.7]} 11. Nxd5 {[%clk
0:02:22.6]} 11... Bxd5 {[%clk 0:03:04.3]} 12. Nd2 {[%clk 0:02:23.3]} 12... Bxb3
{[%clk 0:03:00]} 13. Nxb3 {[%clk 0:02:24.4]} 13... f5 {[%clk 0:02:57.2]} 14. Bc5
{[%clk 0:02:20.2]} 14... b6 {[%clk 0:02:52.5]} 15. Bxe7 {[%clk 0:02:09.8]} 15...
Qxe7 {[%clk 0:02:53.3]} 16. Qe2 {[%clk 0:02:05.8]} 16... a5 {[%clk 0:02:44.7]}
17. d4 {[%clk 0:01:56.7]} 17... Qf6 {[%clk 0:02:25.2]} 18. Qc4+ {[%clk
0:01:46.4]} 18... Kh8 {[%clk 0:02:22.4]} 19. dxe5 {[%clk 0:01:29.5]} 19... Nxe5
{[%clk 0:02:18.9]} 20. Qxc7 {[%clk 0:01:26.2]} 20... Rac8 {[%clk 0:02:17.7]} 21.
Qb7 {[%clk 0:01:18.5]} 21... Rxc2 {[%clk 0:02:14.4]} 22. Rab1 {[%clk 0:00:56.1]}
22... Nd3 {[%clk 0:02:06.5]} 23. Rfd1 {[%clk 0:00:15.2]} 23... Nxf2 {[%clk
0:01:54.9]} 24. Nd4 {[%clk 0:00:10.2]} 24... Ne4 {[%clk 0:01:45.3]} 25. Nxc2
{[%clk 0:00:09.3]} 25... Ng3 {[%clk 0:01:40.2]} 26. Qf3 {[%clk 0:00:06]} 26...
f4 {[%clk 0:01:39]} 27. Nd4 {[%clk 0:00:04.4]} 27... g5 {[%clk 0:01:34.3]} 28.
Qc3 {[%clk 0:00:04.4]} 28... Ne4 {[%clk 0:01:30.1]} 29. Qd3 {[%clk 0:00:03.9]}
29... Nc5 {[%clk 0:01:28.8]} 30. Qc3 {[%clk 0:00:04.1]} 30... Ne4 {[%clk
0:01:29.4]} 31. Qe1 {[%clk 0:00:05]} 31... Nc5 {[%clk 0:01:23.9]} 32. Nf3 {[%clk
0:00:05.2]} 32... h5 {[%clk 0:01:19.7]} 33. Qe5 {[%clk 0:00:04.5]} 33... Qxe5
{[%clk 0:01:17.8]} 34. Nxe5 {[%clk 0:00:06.4]} 34... Ne4 {[%clk 0:01:18.7]} 35.
Ng6+ {[%clk 0:00:07.2]} 35... Kg7 {[%clk 0:01:18.6]} 36. Nxf8 {[%clk 0:00:09.1]}
1-0

[Event "*** Titled Tuesday Blitz"]
[Site "Chess.com"]
[Date "2019.05.07"]
[Round "3"]
[White "r31415"]
[Black "GelmanAlexander"]
[Result "0-1"]
[WhiteElo "2348"]
[BlackElo "2572"]
[TimeControl "180+2"]
[EndTime "13:37:57 PDT"]
[Termination "GelmanAlexander won by resignation"]

1. e4 {[%clk 0:03:01.9]} 1... c5 {[%clk 0:03:00.7]} 2. Nf3 {[%clk 0:03:02.8]}
2... e6 {[%clk 0:03:02.3]} 3. d4 {[%clk 0:03:04.3]} 3... cxd4 {[%clk 0:03:03.9]}
4. Nxd4 {[%clk 0:03:06.2]} 4... d6 {[%clk 0:03:05.5]} 5. Nc3 {[%clk 0:03:07]}
5... a6 {[%clk 0:03:06.7]} 6. g4 {[%clk 0:03:01.5]} 6... b5 {[%clk 0:03:07.1]}
7. Bg2 {[%clk 0:03:01.2]} 7... Bb7 {[%clk 0:03:08]} 8. O-O {[%clk 0:02:58.6]}
8... h6 {[%clk 0:03:00.1]} 9. h3 {[%clk 0:02:56.6]} 9... Nf6 {[%clk 0:03:01]}
10. a4 {[%clk 0:02:43.3]} 10... b4 {[%clk 0:03:00.8]} 11. Nd5 {[%clk 0:02:44.5]}
11... Nbd7 {[%clk 0:02:39.5]} 12. Re1 {[%clk 0:02:16.3]} 12... Nc5 {[%clk
0:02:13.5]} 13. Nxb4 {[%clk 0:01:43.8]} 13... Ncxe4 {[%clk 0:01:48.8]} 14. Nbc6
{[%clk 0:01:28.6]} 14... Bxc6 {[%clk 0:01:32]} 15. Nxc6 {[%clk 0:01:28.6]} 15...
Qb6 {[%clk 0:01:33.6]} 16. Rxe4 {[%clk 0:00:23.4]} 16... Nxe4 {[%clk 0:01:20.7]}
17. Bxe4 {[%clk 0:00:24.4]} 17... d5 {[%clk 0:01:22.2]} 18. Bxd5 {[%clk
0:00:25.7]} 18... exd5 {[%clk 0:01:20.7]} 19. Qxd5 {[%clk 0:00:16.5]} 19... Bc5
{[%clk 0:01:08.7]} 20. a5 {[%clk 0:00:06.2]} 20... Bxf2+ {[%clk 0:01:07.2]} 21.
Kg2 {[%clk 0:00:06.9]} 21... Qc5 {[%clk 0:01:08.3]} 22. Qe4+ {[%clk 0:00:06.7]}
22... Kf8 {[%clk 0:01:09.5]} 23. b3 {[%clk 0:00:05.3]} 23... Re8 {[%clk
0:01:03.9]} 24. Qf3 {[%clk 0:00:03.8]} 24... Kg8 {[%clk 0:00:57.3]} 25. Ba3
{[%clk 0:00:05]} 25... Qxc2 {[%clk 0:00:56.1]} 26. Rf1 {[%clk 0:00:04.8]} 26...
Bc5+ {[%clk 0:00:48.2]} 27. Kh1 {[%clk 0:00:05.9]} 27... Bxa3 {[%clk 0:00:47.2]}
28. Qxf7+ {[%clk 0:00:05.2]} 28... Kh7 {[%clk 0:00:48.8]} 29. Qf3 {[%clk
0:00:03.5]} 0-1

[Event "*** Titled Tuesday Blitz"]
[Site "Chess.com"]
[Date "2019.05.07"]
[Round "3"]
[White "DamianoLew95"]
[Black "Arystanner"]
[Result "0-1"]
[WhiteElo "2451"]
[BlackElo "2751"]
[TimeControl "180+2"]
[EndTime "13:38:02 PDT"]
[Termination "Arystanner won by resignation"]

1. d4 {[%clk 0:03:01.9]} 1... Nf6 {[%clk 0:02:59.9]} 2. Bf4 {[%clk 0:03:01.5]}
2... e6 {[%clk 0:03:01.2]} 3. e3 {[%clk 0:03:01.6]} 3... d5 {[%clk 0:02:56.7]}
4. Nd2 {[%clk 0:03:01.6]} 4... c5 {[%clk 0:02:58.2]} 5. c3 {[%clk 0:03:02.4]}
5... Nc6 {[%clk 0:02:59.9]} 6. Ngf3 {[%clk 0:03:03.7]} 6... Nh5 {[%clk
0:03:01.5]} 7. Be5 {[%clk 0:02:52.8]} 7... f6 {[%clk 0:03:02]} 8. Bg3 {[%clk
0:02:50.8]} 8... g6 {[%clk 0:03:03.3]} 9. Bd3 {[%clk 0:02:47.9]} 9... Be7 {[%clk
0:03:03.2]} 10. Qe2 {[%clk 0:02:48.8]} 10... O-O {[%clk 0:03:01]} 11. O-O {[%clk
0:02:41]} 11... Nxg3 {[%clk 0:03:00.7]} 12. hxg3 {[%clk 0:02:38.8]} 12... e5
{[%clk 0:03:00.7]} 13. e4 {[%clk 0:02:30.9]} 13... dxe4 {[%clk 0:02:57.4]} 14.
Bxe4 {[%clk 0:02:29.1]} 14... cxd4 {[%clk 0:02:56.4]} 15. Bxc6 {[%clk 0:02:29]}
15... bxc6 {[%clk 0:02:55.9]} 16. cxd4 {[%clk 0:02:29.6]} 16... exd4 {[%clk
0:02:56.4]} 17. Qc4+ {[%clk 0:02:22.4]} 17... Qd5 {[%clk 0:02:56.1]} 18. Qxd5+
{[%clk 0:02:22.1]} 18... cxd5 {[%clk 0:02:58]} 19. Nxd4 {[%clk 0:02:13.5]} 19...
Bd7 {[%clk 0:02:57.5]} 20. Rac1 {[%clk 0:02:11.2]} 20... Rfc8 {[%clk 0:02:57.8]}
21. N2b3 {[%clk 0:02:08.2]} 21... Kf7 {[%clk 0:02:52.1]} 22. Rxc8 {[%clk
0:02:05.6]} 22... Rxc8 {[%clk 0:02:52.2]} 23. Rc1 {[%clk 0:02:07.5]} 23... Rc4
{[%clk 0:02:48.2]} 24. Rxc4 {[%clk 0:01:14.5]} 24... dxc4 {[%clk 0:02:50.1]} 25.
Nd2 {[%clk 0:01:08.8]} 25... Bc5 {[%clk 0:02:50.9]} 26. Nc2 {[%clk 0:01:06.1]}
26... Be6 {[%clk 0:02:51.2]} 27. a3 {[%clk 0:00:47.6]} 27... Ke7 {[%clk
0:02:51.2]} 28. Kf1 {[%clk 0:00:48]} 28... Kd6 {[%clk 0:02:52.3]} 29. Ne4+
{[%clk 0:00:48.5]} 29... Kc6 {[%clk 0:02:51.4]} 30. Nxf6 {[%clk 0:00:43.4]}
30... Bf5 {[%clk 0:02:45.2]} 31. Nb4+ {[%clk 0:00:21.5]} 31... Bxb4 {[%clk
0:02:35.4]} 32. axb4 {[%clk 0:00:23.4]} 32... Kb5 {[%clk 0:02:37.1]} 33. Nd5
{[%clk 0:00:17.5]} 33... Ka4 {[%clk 0:02:34.7]} 34. Ke1 {[%clk 0:00:14.1]} 34...
Kb3 {[%clk 0:02:35.1]} 35. Kd2 {[%clk 0:00:12.4]} 35... Kxb2 {[%clk 0:02:34]}
36. b5 {[%clk 0:00:13.2]} 36... Be4 {[%clk 0:02:33.6]} 37. Nc3 {[%clk
0:00:11.4]} 37... Bxg2 {[%clk 0:02:34.6]} 38. Na4+ {[%clk 0:00:09.9]} 38... Kb3
{[%clk 0:02:34.5]} 39. Nc5+ {[%clk 0:00:11]} 39... Kb4 {[%clk 0:02:32]} 40. Ne6
{[%clk 0:00:11.6]} 40... Kxb5 {[%clk 0:02:30.2]} 41. Kc3 {[%clk 0:00:12.6]}
41... Bf1 {[%clk 0:02:27]} 42. Nf8 {[%clk 0:00:11.5]} 42... a5 {[%clk
0:02:26.7]} 43. Nxh7 {[%clk 0:00:12.5]} 43... a4 {[%clk 0:02:28.3]} 44. Nf6
{[%clk 0:00:11]} 44... a3 {[%clk 0:02:27.4]} 45. Ne4 {[%clk 0:00:11.2]} 45...
Kc6 {[%clk 0:02:10.9]} 46. Nd2 {[%clk 0:00:11.6]} 46... Bd3 {[%clk 0:02:12.4]}
47. f4 {[%clk 0:00:11.9]} 47... Kd5 {[%clk 0:02:13.8]} 48. g4 {[%clk 0:00:12.8]}
48... a2 {[%clk 0:02:11.8]} 0-1